bitfinex/quotes_ETHUSD_20250827
["timestamp","ask_amount","ask_price","bid_price","bid_amount"]
[1756280421068,6.11698477,4583.3,4583.2,0.001]
[1756280422233,16.11698477,4583.3,4583.2,0.001]
[1756280422432,16.11677456,4583.3,4583.2,0.001]
[1756280422843,19.81677456,4583.3,4583.2,0.001]
[1756280423047,20.1582676,4583.3,4583.2,0.001]
[1756280423473,2.18202448,4582.9,4582.6,0.001]
[1756280423679,17.00211009,4582.9,4582.6,0.001]
[1756280423829,17.84291009,4582.9,4582.6,0.001]
[1756280425053,27.84291009,4582.9,4582.6,0.001]
[1756280425368,34.92211008,4582.9,4582.6,0.001]
[1756280425863,34.92188571,4582.9,4582.6,0.001]
[1756280427736,31.22188571,4582.9,4582.6,0.001]
[1756280427959,35.26342169,4582.9,4582.6,0.001]
[1756280428440,31.56342169,4582.9,4582.6,0.001]
[1756280428663,35.26342169,4582.9,4582.6,0.001]
[1756280428866,2.18211971,4582.7,4582.0,0.001]
[1756280429072,11.42145528,4582.3,4582.0,0.001]
[1756280429232,17.27577143,4582.3,4582.0,0.001]
[1756280429437,21.41997143,4582.3,4582.0,0.001]
[1756280429838,31.76154066,4582.3,4582.0,0.001]
[1756280430249,31.84906466,4582.3,4582.0,0.001]
[1756280432569,2.18240544,4582.1,4582.0,0.001]
[1756280432771,9.08512159,4582.1,4582.0,0.001]
[1756280432978,9.82612159,4582.1,4582.0,0.001]
[1756280433542,2.18254834,4581.8,4581.2,0.001]
[1756280433837,11.5305887,4581.6,4581.2,0.001]
[1756280434059,12.03010485,4581.6,4581.2,0.001]
[1756280434276,12.700758,4581.6,4581.2,0.001]
[1756280434463,12.90299485,4581.6,4581.2,0.001]
[1756280434961,22.90299485,4581.6,4581.2,0.001]
[1756280435260,2.18278654,4581.3,4581.2,0.001]
[1756280435563,16.07078653,4581.3,4581.2,0.001]
[1756280435758,16.91957632,4581.3,4581.2,0.001]
[1756280435983,26.91957632,4581.3,4581.2,0.001]
[1756280436281,2.18288184,4581.1,4578.8,2.2039587]
[1756280436479,11.42212223,4580.9,4579.5,0.4458]
[1756280436682,11.82692223,4580.9,4579.5,0.4458]
[1756280436879,12.27112223,4580.9,4579.5,0.4458]
[1756280437083,12.47318387,4580.9,4579.5,0.4458]
[1756280437283,12.27112223,4580.9,4579.5,0.4458]
[1756280437994,22.27112223,4580.9,4579.5,0.4458]
[1756280439286,22.61279948,4580.9,4579.5,0.4458]
[1756280439465,11.42250353,4580.1,4579.5,0.4458]
[1756280439660,16.80150353,4580.1,4579.5,0.4458]
[1756280439876,16.91030353,4580.1,4579.5,0.4458]
[1756280440070,26.91030353,4580.1,4580.0,0.4044]
[1756280440385,27.35610353,4580.1,4580.0,0.4044]
[1756280440682,27.65290353,4580.1,4580.0,0.11]
[1756280440854,28.09710353,4580.1,4580.0,0.11]
[1756280442599,28.09710353,4580.1,4580.0,0.4044]
[1756280442600,17.41695844,4580.1,4580.0,0.4044]
[1756280442770,27.35610353,4580.1,4580.0,0.4044]
[1756280443696,2.18345378,4579.9,4578.8,0.02]
[1756280443878,3.0,4579.4,4578.8,0.02]
[1756280444084,2.29273063,4578.9,4578.8,0.02]
[1756280444285,10.67273063,4578.9,4578.8,0.02]
[1756280444612,10.67273063,4578.9,4578.8,0.3144]
[1756280444807,7.67273063,4578.9,4578.8,0.3144]
[1756280447804,8.32952663,4578.9,4578.8,0.3144]
[1756280449506,8.32952663,4578.9,4578.8,0.7602]
[1756280449898,2.444596,4578.9,4578.8,0.7602]
[1756280450199,5.4888,4578.9,4578.8,0.7602]
[1756280450401,7.67273063,4578.9,4578.8,0.7612]
[1756280452595,5.4888,4578.9,4578.8,0.7612]
[1756280452791,7.67273063,4578.9,4578.8,0.021]
[1756280452991,3.97173063,4578.9,4578.8,0.3154]
[1756280453293,5.4888,4578.9,4578.8,0.7612]
[1756280453597,7.67273063,4578.9,4578.8,0.7612]
[1756280453799,7.67273063,4578.9,4578.8,0.3154]
[1756280454403,7.67273063,4578.9,4578.8,0.7612]
[1756280454624,7.67273063,4578.9,4578.8,0.3154]
[1756280455236,10.96953063,4578.9,4578.8,0.021]
[1756280455534,11.41373063,4578.9,4578.8,0.021]
[1756280455694,11.87361458,4578.9,4578.8,0.021]
[1756280455890,21.87361458,4578.9,4578.8,1e-08]
[1756280456294,2.18416914,4578.4,4578.3,0.001]
[1756280456518,20.48391423,4578.4,4578.3,0.001]
[1756280456741,21.22491423,4578.4,4578.3,0.001]
[1756280456961,2.18440769,4577.9,4577.8,0.021]
[1756280457110,13.80455278,4577.9,4577.8,0.021]
[1756280457427,7.97180769,4577.9,4577.8,0.021]
[1756280457625,8.41760769,4577.9,4577.8,0.021]
[1756280457808,18.41760769,4577.9,4577.8,0.021]
[1756280458016,21.85210769,4577.9,4577.8,0.021]
[1756280458421,22.05397205,4577.9,4577.8,0.021]
[1756280458654,21.85210769,4577.9,4577.8,0.021]
[1756280458809,22.05396375,4577.9,4577.8,0.021]
[1756280460340,15.43725606,4577.9,4577.8,0.3191]
[1756280460508,21.41700769,4577.9,4577.8,0.021]
[1756280460722,21.85150769,4577.9,4577.8,0.021]
[1756280461122,22.05270258,4577.9,4577.8,0.021]
[1756280463424,19.13759489,4577.9,4577.8,0.3191]
[1756280463664,12.2346,4577.9,4577.8,0.3191]
[1756280463944,8.9356,4577.9,4577.8,0.7468]
[1756280464247,5.9356,4577.9,4577.8,2.93125541]
[1756280464415,5.3802,4577.9,4577.8,3.22438095]
[1756280464610,5.3802,4577.9,4577.8,1.03992554]
[1756280464954,8.6764,4577.9,4577.8,0.021]
[1756280465343,3.0,4577.8,4577.0,0.3987]
[1756280465516,0.1096,4577.1,4577.0,0.3987]
[1756280465715,3.8106,4577.1,4577.0,0.3987]
[1756280465926,3.8106,4577.1,4577.0,2.88163722]
[1756280466462,0.1096,4577.1,4577.0,3.3902917]
[1756280466668,11.6792,4577.9,4577.8,2.18445541]
[1756280466813,15.3802,4577.9,4577.8,0.2981]
[1756280467017,5.4898,4577.9,4577.8,0.2981]
[1756280467446,1.7888,4577.9,4577.8,2.91025541]
[1756280467748,5.4898,4577.9,4577.8,3.20128095]
[1756280468110,1.7888,4577.9,4577.8,3.20128095]
[1756280468315,5.4898,4577.9,4577.8,3.20128095]
[1756280468736,1.7888,4577.9,4577.8,3.20128095]
[1756280468946,5.4898,4577.9,4577.8,3.20128095]
[1756280469151,5.4898,4577.9,4577.8,3.20228095]
[1756280469152,1.7888,4577.9,4577.8,3.20228095]
[1756280469358,5.3822,4577.9,4577.8,3.31188095]
[1756280472130,5.3822,4577.9,4577.8,6.31188095]
[1756280472950,5.3822,4577.9,4577.8,5.88418095]
[1756280473262,5.3822,4577.9,4577.8,6.31188095]
[1756280475424,5.3822,4577.9,4577.8,3.31188095]
[1756280478362,5.3822,4577.9,4577.8,2.88418095]
[1756280479221,5.6784,4577.9,4577.8,0.001]
[1756280479457,6.1129,4577.9,4577.8,0.001]
[1756280479955,8.95415669,4577.9,4577.8,0.001]
[1756280480488,11.95415669,4577.9,4577.8,0.001]
[1756280480887,21.95415669,4577.9,4577.8,0.001]
[1756280481083,22.15668958,4577.9,4577.8,0.001]
[1756280481473,22.49858497,4577.9,4577.8,0.001]
[1756280481879,29.57778496,4577.9,4577.8,0.001]
[1756280483189,25.87678496,4577.9,4577.8,0.001]
[1756280483391,29.57678496,4577.9,4577.8,0.001]
[1756280483964,25.87678496,4577.9,4577.8,0.001]
[1756280484289,29.57678496,4577.9,4577.8,0.001]
[1756280484598,29.57678496,4577.9,4577.3,0.001]
[1756280484599,2.1846463,4577.4,4577.3,0.001]
[1756280484782,14.33817919,4577.4,4577.3,0.001]
[1756280484987,15.06887919,4577.4,4577.3,0.001]
[1756280485696,22.14727918,4577.4,4577.3,0.001]
[1756280485868,22.14727918,4577.4,4577.3,1e-08]
[1756280486066,22.14702467,4577.4,4577.3,1e-08]
[1756280486486,2.18488496,4576.9,4576.8,0.021]
[1756280486686,10.76806997,4576.9,4576.8,0.021]
[1756280486891,21.49876997,4576.9,4576.8,0.021]
[1756280487079,28.57796996,4576.9,4576.8,0.021]
[1756280487487,28.66559896,4576.9,4576.8,0.021]
[1756280487997,26.480714,4576.9,4574.8,0.02]
[1756280488198,6.90218501,4576.8,4574.8,0.02]
[1756280488388,2.18510271,4576.5,4574.9,0.4286]
[1756280488586,5.50016244,4575.9,4574.9,0.4286]
[1756280488788,10.88016244,4575.9,4574.9,0.4286]
[1756280488992,10.88016244,4575.9,4574.9,2.61442736]
[1756280489191,8.38,4575.9,4574.9,2.61442736]
[1756280489393,8.9182,4575.9,4574.9,2.61442736]
[1756280489796,11.41836244,4575.9,4574.9,2.61442736]
[1756280489984,11.86736244,4575.9,4575.0,2.1857768]
[1756280490301,11.86736244,4575.9,4574.9,0.4286]
[1756280490927,8.9182,4575.9,4574.9,0.4286]
[1756280491225,8.9182,4575.9,4575.8,0.3078]
[1756280491394,8.9192,4575.9,4575.8,0.3078]
[1756280491594,8.9192,4575.9,4575.8,0.02]
[1756280492407,11.10456244,4575.9,4575.8,0.02]
[1756280492841,11.10456244,4575.9,4575.8,0.3078]
[1756280493227,11.10456244,4575.9,4575.8,0.02]
[1756280493529,11.41936244,4575.9,4575.8,0.02]
[1756280493727,11.86836244,4575.9,4575.8,0.02]
[1756280494613,8.16736244,4575.9,4575.8,0.02]
[1756280494819,7.71836244,4575.9,4575.8,0.02]
[1756280495025,11.41936244,4575.9,4575.8,0.02]
[1756280495329,11.86836244,4575.9,4575.8,0.02]
[1756280497029,11.75876244,4575.9,4575.8,0.02]
[1756280497806,8.05776244,4575.9,4575.8,0.02]
[1756280498025,18.05776244,4575.9,4575.8,0.02]
[1756280498240,21.75876244,4575.9,4575.8,0.02]
[1756280500518,18.05776244,4575.9,4575.8,0.02]
[1756280500730,22.10081956,4575.9,4575.8,0.02]
[1756280501426,19.15265712,4575.9,4575.8,0.02]
[1756280501627,21.33801956,4575.9,4575.8,0.3078]
[1756280501824,15.45065712,4575.9,4575.8,0.02]
[1756280502033,11.33801956,4575.9,4575.8,0.02]
[1756280502233,11.65281956,4575.9,4575.8,0.02]
[1756280502949,21.65281956,4575.9,4575.8,0.02]
[1756280503146,22.10181956,4575.9,4575.8,0.02]
[1756280503519,21.65281956,4575.9,4575.8,0.02]
[1756280503721,22.10181956,4575.9,4575.8,0.02]
[1756280503944,22.10181956,4575.9,4575.8,0.021]
[1756280504720,21.75976244,4575.9,4575.8,0.021]
[1756280505347,28.02774136,4575.9,4575.8,0.021]
[1756280506872,15.1086,4575.9,4575.8,0.3088]
[1756280507162,11.10556244,4575.9,4575.8,0.3088]
[1756280507325,8.9202,4575.9,4575.8,0.3088]
[1756280507721,11.10556244,4575.9,4575.8,0.3088]
[1756280507934,21.10556244,4575.9,4575.8,0.3088]
[1756280508134,18.9202,4575.9,4575.8,0.3088]
[1756280508370,21.44758685,4575.9,4575.8,0.3088]
[1756280508745,19.26222441,4575.9,4575.8,0.3088]
[1756280508942,9.26222441,4575.9,4575.8,0.3088]
[1756280509126,11.44758685,4575.9,4575.8,0.3088]
[1756280509327,11.44758685,4575.9,4575.8,0.021]
[1756280509858,22.41391071,4575.9,4575.8,0.021]
[1756280510232,22.41311071,4575.9,4575.8,0.021]
[1756280510429,22.30351071,4575.9,4575.8,0.021]
[1756280510622,22.30251071,4575.9,4575.8,0.021]
[1756280510826,18.60151071,4575.9,4575.8,0.021]
[1756280511063,22.30251071,4575.9,4575.8,0.021]
[1756280511273,27.55651071,4575.9,4575.8,0.021]
[1756280512046,23.09171071,4575.9,4575.8,0.021]
[1756280512428,26.79271071,4575.9,4575.8,0.021]
[1756280513124,27.55651071,4575.9,4575.8,0.021]
[1756280513325,26.79271071,4575.9,4575.8,0.021]
[1756280513529,23.09171071,4575.9,4575.8,0.021]
[1756280513866,2.65314827,4575.9,4575.8,0.3088]
[1756280514162,1.68,4575.9,4575.8,2.9228102]
[1756280514378,5.381,4575.9,4575.8,3.433639]
[1756280514881,5.381,4575.9,4575.8,0.3088]
[1756280515155,1.68,4575.9,4575.8,0.3088]
[1756280515357,5.381,4575.9,4575.8,0.3088]
[1756280516461,6.038175,4575.9,4575.8,0.7374]
[1756280516666,6.038175,4575.9,4575.8,2.9228102]
[1756280516873,5.381,4575.9,4575.8,2.9228102]
[1756280517086,5.381,4575.9,4575.8,3.43363948]
[1756280518589,5.381,4575.9,4575.8,2.9228102]
[1756280518786,1.68,4575.9,4575.8,2.9228102]
[1756280518992,5.381,4575.9,4575.8,2.9228102]
[1756280519590,5.381,4575.9,4575.8,0.7374]
[1756280520405,5.381,4575.9,4575.8,2.9228102]
[1756280521080,5.381,4575.9,4575.8,3.44460124]
[1756280521081,1.68,4575.9,4575.8,3.44460124]
[1756280521280,5.381,4575.9,4575.8,3.44460124]
[1756280521963,5.381,4575.9,4575.8,3.01600124]
[1756280522297,5.381,4575.9,4575.8,2.9421102]
[1756280522494,5.381,4575.9,4575.8,0.3088]
[1756280523665,5.381,4575.9,4575.8,0.021]
[1756280523865,5.4906,4575.9,4575.8,0.3126]
[1756280525301,5.4906,4575.9,4575.8,0.021]
[1756280528701,5.4906,4575.9,4575.8,0.3126]
[1756280528889,1.7896,4575.9,4575.8,2.4980102]
[1756280529296,5.4896,4575.9,4575.8,0.3126]
[1756280529499,5.4896,4575.9,4575.8,2.4980102]
[1756280529808,5.38,4575.9,4575.8,2.4980102]
[1756280530107,5.38,4575.9,4575.8,0.3126]
[1756280531011,5.38,4575.9,4575.8,2.4980102]
[1756280531908,5.38,4575.9,4575.8,0.3126]
[1756280532509,5.38,4575.9,4575.8,0.021]
[1756280533614,5.6766,4575.9,4575.8,0.021]
[1756280534308,5.38,4575.9,4575.8,2.4980102]
[1756280534609,5.3792,4575.9,4575.8,2.4980102]
[1756280534812,5.3792,4575.9,4575.8,2.9459102]
[1756280535111,5.3792,4575.9,4575.8,2.6076102]
[1756280535310,5.3792,4575.9,4575.8,3.0555102]
[1756280535482,5.3792,4575.9,4575.8,3.57960566]
[1756280536582,1.6792,4575.9,4575.8,3.57960566]
[1756280536785,0.1116,4576.8,4576.7,2.18498044]
[1756280536986,5.383,4576.8,4576.7,2.18498044]
[1756280537307,5.383,4576.8,4576.7,2.58618044]
[1756280537506,5.383,4576.8,4576.7,0.4012]
[1756280537815,5.383,4576.8,4576.7,0.1096]
[1756280538519,5.383,4576.8,4576.7,2.29458044]
[1756280539098,5.383,4576.8,4576.7,0.1096]
[1756280541320,5.6796,4576.8,4576.7,0.1096]
[1756280541726,5.6796,4576.8,4575.8,0.021]
[1756280541727,6.2417,4576.8,4575.9,0.1096]
[1756280541891,2.18501391,4576.7,4575.9,2.29492432]
[1756280542084,3.7,4576.6,4575.9,2.29492432]
[1756280542287,3.7,4576.6,4576.0,2.18530671]
[1756280542505,3.7,4576.6,4575.9,2.29495834]
[1756280542727,0.4525,4576.5,4575.9,0.1096]
[1756280543031,3.7,4576.4,4576.1,2.18522042]
[1756280543221,3.7,4576.4,4576.2,2.18521039]
[1756280543701,3.7,4576.4,4575.9,2.29495244]
[1756280543899,3.7,4576.4,4576.1,2.18523265]
[1756280544428,3.7,4576.4,4576.2,2.18518441]
[1756280545826,3.7,4576.4,4576.0,2.18531468]
[1756280545993,3.7,4576.4,4576.3,0.2916]
[1756280546194,3.7,4576.4,4576.3,2.47677142]
[1756280546897,3.699,4576.4,4576.3,2.47677142]
[1756280548009,1.683,4576.8,4576.7,2.18498044]
[1756280548248,5.382,4576.8,4576.7,0.3104]
[1756280548826,5.382,4576.8,4576.6,2.29462637]
[1756280549189,5.382,4576.8,4576.7,2.49538044]
[1756280549526,5.382,4576.8,4576.7,0.3104]
[1756280550120,5.382,4576.8,4576.7,2.49538044]
[1756280550604,5.382,4576.8,4576.7,3.42388588]
[1756280550605,0.002,4576.8,4576.7,3.42388588]
[1756280552931,3.701,4576.8,4576.7,3.42388588]
[1756280555564,3.701,4576.8,4576.7,2.97438588]
[1756280557251,4.0071,4576.8,4576.7,2.18498044]
[1756280557457,4.4505,4576.8,4576.7,2.18498044]
[1756280557634,4.4505,4576.8,4576.6,2.18502241]
[1756280557823,2.1234,4576.7,4576.6,2.18502818]
[1756280558025,1.68,4576.7,4576.6,2.18502818]
[1756280558220,5.378,4576.7,4576.6,2.93244194]
[1756280558632,5.378,4576.7,4576.6,2.62204194]
[1756280559252,5.3772,4576.7,4576.6,2.62204194]
[1756280559657,5.6833,4576.7,4576.6,2.18502818]
[1756280559846,5.3772,4576.7,4576.6,2.49542818]
[1756280560759,5.3772,4576.7,4576.6,2.60502818]
[1756280560957,1.6792,4576.7,4576.6,2.60502818]
[1756280561158,5.3772,4576.7,4576.6,2.60502818]
[1756280561348,3.698,4576.7,4576.6,3.53354194]
[1756280562152,3.698,4576.7,4576.6,3.08404194]
[1756280564261,3.698,4576.7,4576.6,2.77364194]
[1756280565463,4.0041,4576.7,4576.6,2.77364194]
[1756280565636,0.002,4576.8,4576.7,2.18498044]
[1756280565843,3.7,4576.8,4576.7,2.93039362]
[1756280568968,0.002,4576.8,4576.7,2.93039362]
[1756280569136,3.7,4576.8,4576.7,3.26264342]
[1756280569467,3.7,4576.8,4576.7,3.24079362]
[1756280570783,0.002,4576.8,4576.7,3.69029362]
[1756280571003,1e-08,4577.3,4576.7,4.07766298]
[1756280571288,1e-08,4578.4,4577.7,0.66]
[1756280571467,1e-08,4578.4,4578.3,11.7590793]
[1756280571639,1e-08,4578.4,4578.3,15.5656793]
[1756280571839,1e-08,4578.8,4578.7,2.18402603]
[1756280572039,3.697,4579.5,4579.4,2.18369218]
[1756280572273,3.697,4579.5,4579.4,2.93083775]
[1756280572473,3.697,4579.5,4579.4,3.03963775]
[1756280573343,0.4434,4580.2,4579.7,2.18354914]
[1756280573545,3.737,4579.8,4579.7,2.18354914]
[1756280573884,3.737,4579.8,4579.7,2.60274914]
[1756280574762,3.737,4579.8,4579.7,2.29234914]
[1756280575574,3.736,4579.8,4579.7,2.29234914]
[1756280577676,3.736,4579.8,4579.7,2.58504914]
[1756280577876,0.04,4579.8,4579.7,3.10777427]
[1756280578175,3.736,4579.8,4579.7,3.10777427]
[1756280578366,3.736,4579.8,4579.7,2.81507427]
[1756280578768,4.4922,4579.8,4579.7,2.29234914]
[1756280580590,4.4922,4579.8,4579.7,0.1088]
[1756280580790,4.4922,4579.8,4579.7,2.29234914]
[1756280582580,4.4922,4579.8,4579.7,0.1088]
[1756280582954,4.4922,4579.8,4579.7,2.29234914]
[1756280583461,4.4914,4579.8,4579.7,0.1088]
[1756280583661,4.4914,4579.8,4578.8,0.02]
[1756280583981,4.4914,4579.8,4579.6,2.1835551]
[1756280584282,0.4597,4579.7,4579.5,0.1088]
[1756280584482,0.4597,4579.7,4579.6,2.18359682]
[1756280584688,0.7562,4579.7,4579.6,2.18359682]
[1756280585668,4.4512,4579.7,4579.6,2.18359682]
[1756280587210,0.7562,4579.7,4579.6,2.18359682]
[1756280587415,4.4512,4579.7,4579.6,2.18359682]
[1756280588292,3.9915,4579.7,4579.6,2.18359682]
[1756280588616,0.0392,4579.8,4579.7,2.18354914]
[1756280588815,3.7342,4579.8,4579.7,2.18354914]
[1756280589115,4.0307,4579.8,4579.7,2.18354914]
[1756280589489,4.4904,4579.8,4579.7,2.18354914]
[1756280590609,4.4894,4579.8,4579.7,2.18354914]
[1756280591686,4.4914,4579.8,4579.7,2.18354914]
[1756280592615,3.7352,4579.8,4579.7,2.47624914]
[1756280593485,3.7352,4579.8,4579.7,2.18354914]
[1756280595608,3.7352,4579.8,4579.7,2.92384839]
[1756280595823,0.0412,4579.8,4579.7,2.94568388]
[1756280595988,0.0412,4579.8,4579.7,3.48214839]
[1756280600616,0.0412,4579.8,4579.7,3.03264839]
[1756280602725,0.0412,4579.8,4579.7,2.73994839]
[1756280602930,0.3377,4579.8,4579.7,2.73994839]
[1756280603129,0.0412,4579.8,4579.7,2.73994839]
[1756280603325,0.0412,4579.8,4579.7,3.03264839]
[1756280603529,0.0412,4579.8,4579.7,2.73994839]
[1756280603727,0.3377,4579.8,4579.7,2.73994839]
[1756280604032,0.7974,4579.8,4579.7,2.73994839]
[1756280604199,0.0412,4579.8,4579.7,2.73994839]
[1756280605313,0.7974,4579.8,4579.7,2.73994839]
[1756280606412,0.0412,4579.8,4579.7,2.73994839]
[1756280608103,0.0404,4579.8,4579.7,2.73994839]
[1756280610626,0.7741,4579.8,4579.7,2.29234914]
[1756280611758,0.3379,4579.8,4579.7,2.29234914]
[1756280612158,3.7324,4579.8,4579.7,2.29234914]
[1756280614149,3.7324,4579.8,4579.7,2.59574914]
[1756280616175,3.7324,4579.8,4579.7,2.29234914]
[1756280616363,3.7324,4579.8,4579.7,2.74004839]
[1756280616876,4.4661,4579.8,4579.7,2.29234914]
[1756280620946,4.4661,4579.8,4579.7,0.1088]
[1756280621454,6.1451,4579.8,4579.6,0.001]
[1756280621963,2.18354914,4579.7,4579.6,0.001]
[1756280622360,2.91724914,4579.7,4579.6,0.001]
[1756280625077,5.4114,4579.8,4579.6,0.001]
[1756280625078,1.7194,4579.8,4579.6,0.001]
[1756280625277,0.0404,4579.8,4579.7,2.18354914]
[1756280625475,0.0404,4579.8,4579.7,2.65070794]
[1756280625881,0.3379,4579.8,4579.7,2.65070794]
[1756280626072,0.7741,4579.8,4579.7,2.18354914]
[1756280627572,4.0289,4579.8,4579.7,2.18354914]
[1756280629592,0.3379,4579.8,4579.7,2.18354914]
[1756280629896,4.0289,4579.8,4579.7,2.18354914]
[1756280631098,4.4651,4579.8,4579.7,2.18354914]
[1756280631857,0.7741,4579.8,4579.7,2.18354914]
[1756280632160,4.4651,4579.8,4579.7,2.18354914]
[1756280632574,4.4643,4579.8,4579.7,2.18354914]
[1756280635090,4.4643,4579.8,4579.7,2.29234914]
[1756280635600,3.7306,4579.8,4579.7,3.04344794]
[1756280636690,4.4643,4579.8,4579.7,2.74004794]
[1756280636868,4.0281,4579.8,4579.7,2.29234914]
[1756280639299,3.7296,4579.8,4579.7,2.57744914]
[1756280640769,4.0197,4579.8,4579.7,0.1088]
[1756280640979,4.4707,4579.8,4579.7,0.1088]
[1756280641421,4.4707,4579.8,4579.7,2.29234914]
[1756280642096,4.0197,4579.8,4579.7,2.29234914]
[1756280642411,3.7296,4579.8,4579.7,2.29234914]
[1756280643228,3.7296,4579.8,4579.7,5.57744914]
[1756280643995,4.0197,4579.8,4579.7,5.29234914]
[1756280644388,4.4707,4579.8,4579.7,5.29234914]
[1756280645082,4.0197,4579.8,4579.7,5.29234914]
[1756280645287,4.0197,4579.8,4579.7,2.29234914]
[1756280646621,4.4707,4579.8,4579.7,2.29234914]
[1756280647322,4.0197,4579.8,4579.7,2.29234914]
[1756280647823,3.7296,4579.8,4579.7,2.29234914]
[1756280648224,3.7296,4579.8,4579.7,2.57744914]
[1756280648900,3.7286,4579.8,4579.7,3.0536572]
[1756280650626,0.0396,4579.8,4579.7,3.52499269]
[1756280650792,0.0396,4579.8,4579.7,6.52499269]
[1756280650992,0.0396,4579.8,4579.7,6.5031572]
[1756280651634,0.0396,4579.8,4579.7,7.1594692]
[1756280651813,0.0396,4579.8,4579.7,6.7099692]
[1756280652330,0.0396,4579.8,4579.7,7.1594692]
[1756280652915,0.0396,4579.8,4579.7,6.7099692]
[1756280653117,3.7286,4579.8,4579.7,6.7099692]
[1756280653724,3.7286,4579.8,4579.7,6.4248692]
[1756280655296,4.0187,4579.8,4579.7,3.4248692]
[1756280655531,4.4697,4579.8,4579.7,2.29234914]
[1756280656135,4.4697,4579.8,4579.7,0.1088]
[1756280656455,6.1487,4579.8,4579.7,0.1088]
[1756280657153,6.1479,4579.8,4579.7,0.1088]
[1756280663767,6.1479,4579.8,4579.6,0.001]
[1756280664253,6.2567,4579.8,4579.6,0.001]
[1756280666271,3.688,4579.7,4579.6,2.18459682]
[1756280667981,3.9972,4579.7,4579.6,0.001]
[1756280668161,3.688,4579.7,4579.6,2.18459682]
[1756280668885,1.7178,4579.8,4579.6,2.18459682]
[1756280669046,1.7178,4579.8,4579.7,2.18354914]
[1756280669247,5.4048,4579.8,4579.7,2.18354914]
[1756280669550,5.4048,4579.8,4579.7,2.60894914]
[1756280671765,5.4048,4579.8,4579.7,0.1088]
[1756280672096,5.4048,4579.8,4579.7,2.29234914]
[1756280673406,5.4048,4579.8,4579.7,2.83828405]
[1756280675059,1.7178,4579.8,4579.7,2.83828405]
[1756280675305,5.4048,4579.8,4579.7,2.83828405]
[1756280677928,1.7178,4579.8,4579.7,2.83828405]
[1756280678078,5.4048,4579.8,4579.7,2.83828405]
[1756280680015,6.1458,4579.8,4579.7,2.29234914]
[1756280681682,6.145,4579.8,4579.7,2.29234914]
[1756280681877,6.145,4579.8,4579.7,0.1088]
[1756280682082,6.145,4579.8,4579.7,2.29234914]
[1756280684033,12.39666075,4579.8,4578.7,0.001]
[1756280684218,2.18397833,4578.8,4578.7,0.001]
[1756280684399,10.54897833,4578.8,4578.7,0.001]
[1756280684723,11.8883168,4578.8,4578.7,0.001]
[1756280684884,11.9758828,4578.8,4578.7,0.001]
[1756280685824,2.18402603,4578.7,4578.4,0.001]
[1756280686006,8.43602073,4578.0,4576.8,0.02]
[1756280686221,13.08652617,4578.0,4576.8,0.02]
[1756280686426,13.51832617,4578.0,4576.8,0.02]
[1756280686812,13.60590617,4578.0,4576.8,0.02]
[1756280687115,13.60590617,4578.0,4576.8,2.20491634]
[1756280687316,13.60590617,4578.0,4576.8,2.20491804]
[1756280687617,13.60590617,4578.0,4576.8,0.02]
[1756280689648,16.60590617,4578.0,4576.8,0.02]
[1756280690146,2.18450313,4577.7,4576.8,0.02]
[1756280690453,2.18488496,4576.9,4576.8,0.02]
[1756280690645,6.18008496,4576.9,4576.8,0.02]
[1756280690857,6.61188496,4576.9,4576.8,0.02]
[1756280691473,7.04318496,4576.9,4576.8,0.02]
[1756280693047,7.04418496,4576.9,4576.8,0.02]
[1756280695667,7.04418496,4576.9,4576.8,0.021]
[1756280697169,3.35718496,4576.9,4576.8,0.021]
[1756280697388,7.04418496,4576.9,4576.8,0.021]
[1756280699764,4.8593,4576.9,4576.8,0.021]
[1756280699969,7.04418496,4576.9,4576.8,0.021]
[1756280701064,10.04418496,4576.9,4576.8,0.021]
[1756280701264,10.38612301,4576.9,4576.8,0.021]
[1756280702112,20.38612301,4576.9,4576.8,0.021]
[1756280702519,2.18512367,4576.4,4576.3,0.001]
[1756280702679,13.91338442,4576.4,4576.3,0.001]
[1756280702880,13.91338442,4576.4,4575.4,0.001]
[1756280702881,2.18555349,4575.5,4575.4,0.001]
[1756280703219,10.55255349,4575.5,4575.4,0.001]
[1756280703371,10.84205349,4575.5,4575.4,0.001]
[1756280703568,11.27475349,4575.5,4575.4,0.001]
[1756280703797,11.36238949,4575.5,4575.4,0.001]
[1756280704976,21.36238949,4575.5,4575.4,0.001]
[1756280706103,17.67458949,4575.5,4575.4,0.001]
[1756280706300,21.36158949,4575.5,4575.4,0.001]
[1756280707602,11.766836,4575.5,4575.4,0.3092]
[1756280707788,11.6792,4575.5,4575.4,2.49480125]
[1756280707993,5.3662,4575.5,4575.4,3.41244853]
[1756280708378,5.3662,4575.5,4575.4,2.96294853]
[1756280710068,5.3662,4575.5,4575.4,2.49480125]
[1756280711173,11.27395349,4575.5,4575.4,0.001]
[1756280711702,12.2733199,4575.5,4575.4,0.001]
[1756280711903,5.18560125,4575.4,4575.3,0.001]
[1756280712119,2.18579234,4575.0,4574.9,0.001]
[1756280712434,10.72829234,4575.0,4574.9,0.001]
[1756280712621,14.84799234,4575.0,4574.9,0.001]
[1756280712921,15.04524634,4575.0,4574.9,0.001]
[1756280713123,15.3873518,4575.0,4574.9,0.001]
[1756280714430,15.3883518,4575.0,4574.9,0.001]
[1756280714796,15.04624634,4575.0,4574.9,0.001]
[1756280714989,21.35824634,4575.0,4574.9,0.001]
[1756280715298,24.93664634,4575.0,4574.9,0.001]
[1756280716924,21.24864634,4575.0,4574.9,0.001]
[1756280717834,24.93664634,4575.0,4574.9,0.001]
[1756280718800,25.2787619,4575.0,4574.9,0.001]
[1756280721336,25.2787619,4575.0,4574.8,0.02]